fUSD/lending_fUSD_20260607
["ID","MTS","AMOUNT","RATE_DAILY","PERIOD"]
[424360586,1780782709000,-332.94197889,0.00038664,120]
[424360588,1780782709000,-500.0,0.00038664,120]
[424360596,1780782709000,-500.0,0.00038664,120]
[424360600,1780782709000,-500.0,0.00038664,120]
[424360599,1780782709000,-500.0,0.00038664,120]
[424360598,1780782709000,-500.0,0.00038664,120]
[424360601,1780782709000,-500.0,0.00038664,120]
[424360602,1780782709000,-500.0,0.00038664,120]
[424360603,1780782709000,-500.0,0.00038664,120]
[424360597,1780782709000,-500.0,0.00038664,120]
[424360604,1780782709000,-500.0,0.00038664,120]
[424360605,1780782709000,-500.0,0.00038664,120]
[424360607,1780782709000,-587.15417624,0.00038664,120]
[424360608,1780782709000,-59428.4149027,0.00038664,120]
[424360606,1780782709000,-500.0,0.00038664,120]
[424360609,1780782709000,-50000.0,0.00038664,120]
[424360611,1780782709000,-3000.0,0.00038664,60]
[424360614,1780782709000,-638.94,0.00038664,120]
[424360612,1780782709000,-638.94,0.00038664,120]
[424360610,1780782709000,-297055.44950547,0.00038664,60]
[424360613,1780782709000,-638.94,0.00038664,120]
[424360619,1780782709000,-638.94,0.00038664,120]
[424360616,1780782709000,-638.94,0.00038664,120]
[424360618,1780782709000,-638.94,0.00038664,120]
[424360615,1780782709000,-638.94,0.00038664,120]
[424360617,1780782709000,-638.94,0.00038664,120]
[424360584,1780782709000,-500.0,0.00038664,120]
[424360593,1780782709000,-500.0,0.00038664,120]
[424360566,1780782709000,-1876.22,0.00038664,120]
[424360592,1780782709000,-500.0,0.00038664,120]
[424360585,1780782709000,-500.0,0.00038664,120]
[424360558,1780782709000,-1876.22,0.00038664,120]
[424360563,1780782709000,-1876.22,0.00038664,120]
[424360561,1780782709000,-1876.22,0.00038664,120]
[424360555,1780782709000,-1876.22,0.00038664,120]
[424360564,1780782709000,-1876.22,0.00038664,120]
[424360557,1780782709000,-1876.22,0.00038664,120]
[424360560,1780782709000,-1876.22,0.00038664,120]
[424360565,1780782709000,-1876.22,0.00038664,120]
[424360562,1780782709000,-1876.22,0.00038664,120]
[424360568,1780782709000,-1876.22,0.00038664,120]
[424360570,1780782709000,-1876.28739991,0.00038664,120]
[424360573,1780782709000,-500.0,0.00038664,120]
[424360572,1780782709000,-223.72865447,0.00038664,120]
[424360559,1780782709000,-1876.22,0.00038664,120]
[424360569,1780782709000,-1876.22,0.00038664,120]
[424360571,1780782709000,-337.44501771,0.00038664,120]
[424360594,1780782709000,-500.0,0.00038664,120]
[424360591,1780782709000,-500.0,0.00038664,120]
[424360595,1780782709000,-500.0,0.00038664,120]
[424360583,1780782709000,-500.0,0.00038664,120]
[424360579,1780782709000,-500.0,0.00038664,120]
[424360581,1780782709000,-500.0,0.00038664,120]
[424360582,1780782709000,-417.93042078,0.00038664,120]
[424360578,1780782709000,-500.0,0.00038664,120]
[424360575,1780782709000,-500.0,0.00038664,120]
[424360577,1780782709000,-500.0,0.00038664,120]
[424360576,1780782709000,-500.0,0.00038664,120]
[424360574,1780782709000,-500.0,0.00038664,120]
[424360580,1780782709000,-500.0,0.00038664,120]
[424360657,1780782710000,-7372.41,0.00038664,120]
[424360665,1780782710000,-500.0,0.00038664,60]
[424360661,1780782710000,-500.0,0.00038664,120]
[424360662,1780782710000,-588.2343229,0.00038664,120]
[424360658,1780782710000,-7372.41,0.00038664,120]
[424360654,1780782710000,-7372.41,0.00038664,120]
[424360660,1780782710000,-17985.0,0.00038664,30]
[424360656,1780782710000,-7372.41,0.00038664,120]
[424360663,1780782710000,-500.0,0.00038664,60]
[424360655,1780782710000,-7372.41,0.00038664,120]
[424360651,1780782710000,-7372.41,0.00038664,120]
[424360675,1780782710000,-174.29394588,0.00038664,120]
[424360659,1780782710000,-7372.4695562,0.00038664,120]
[424360676,1780782710000,-500.0,0.00038664,120]
[424360681,1780782710000,-259.49,0.00038664,120]
[424360664,1780782710000,-500.0,0.00038664,60]
[424360666,1780782710000,-500.0,0.00038664,60]
[424360669,1780782710000,-518.66368797,0.00038664,120]
[424360667,1780782710000,-316.35460321,0.00038664,60]
[424360668,1780782710000,-500.0,0.00038664,120]
[424360673,1780782710000,-500.0,0.00038664,120]
[424360672,1780782710000,-500.0,0.00038664,120]
[424360671,1780782710000,-500.0,0.00038664,30]
[424360674,1780782710000,-500.0,0.00038664,120]
[424360670,1780782710000,-500.0,0.00038664,30]
[424360678,1780782710000,-500.0,0.00038664,120]
[424360682,1780782710000,-496.70449516,0.00038664,120]
[424360680,1780782710000,-500.0,0.00038664,120]
[424360653,1780782710000,-7372.41,0.00038664,120]
[424360677,1780782710000,-500.0,0.00038664,120]
[424360650,1780782710000,-7372.41,0.00038664,120]
[424360635,1780782710000,-639.08281663,0.00038664,120]
[424360646,1780782710000,-7372.41,0.00038664,120]
[424360683,1780782710000,-500.0,0.00038664,120]
[424360622,1780782710000,-638.94,0.00038664,120]
[424360623,1780782710000,-638.94,0.00038664,120]
[424360621,1780782710000,-638.94,0.00038664,120]
[424360620,1780782710000,-638.94,0.00038664,120]
[424360624,1780782710000,-638.94,0.00038664,120]
[424360629,1780782710000,-638.94,0.00038664,120]
[424360626,1780782710000,-638.94,0.00038664,120]
[424360634,1780782710000,-638.94,0.00038664,120]
[424360627,1780782710000,-638.94,0.00038664,120]
[424360625,1780782710000,-638.94,0.00038664,120]
[424360628,1780782710000,-638.94,0.00038664,120]
[424360632,1780782710000,-638.94,0.00038664,120]
[424360636,1780782710000,-7372.41,0.00038664,120]
[424360631,1780782710000,-638.94,0.00038664,120]
[424360633,1780782710000,-638.94,0.00038664,120]
[424360630,1780782710000,-638.94,0.00038664,120]
[424360637,1780782710000,-7372.41,0.00038664,120]
[424360638,1780782710000,-7372.41,0.00038664,120]
[424360648,1780782710000,-7372.41,0.00038664,120]
[424360639,1780782710000,-7372.41,0.00038664,120]
[424360641,1780782710000,-7372.41,0.00038664,120]
[424360640,1780782710000,-7372.41,0.00038664,120]
[424360649,1780782710000,-7372.41,0.00038664,120]
[424360643,1780782710000,-7372.41,0.00038664,120]
[424360642,1780782710000,-7372.41,0.00038664,120]
[424360645,1780782710000,-7372.41,0.00038664,120]
[424360647,1780782710000,-7372.41,0.00038664,120]
[424360644,1780782710000,-7372.41,0.00038664,120]
[424360652,1780782710000,-7372.41,0.00038664,120]
[424360684,1780782710000,-500.0,0.00038664,120]
[424360689,1780782710000,-500.0,0.00038664,120]
[424360686,1780782710000,-500.0,0.00038664,120]
[424360723,1780782710000,-287.9,0.00038664,120]
[424360718,1780782710000,-500.0,0.00038664,120]
[424360719,1780782710000,-500.0,0.00038664,120]
[424360726,1780782710000,-500.0,0.00038664,120]
[424360720,1780782710000,-500.0,0.00038664,120]
[424360727,1780782710000,-500.0,0.00038664,120]
[424360721,1780782710000,-500.0,0.00038664,120]
[424360728,1780782710000,-310.0,0.00038664,120]
[424360729,1780782710000,-500.0,0.00038664,120]
[424360725,1780782710000,-500.0,0.00038664,120]
[424360730,1780782710000,-1000.0,0.00038664,120]
[424360732,1780782710000,-500.0,0.00038664,120]
[424360735,1780782710000,-254.93736814,0.00038664,120]
[424360737,1780782710000,-369.17917592,0.00038664,120]
[424360734,1780782710000,-500.0,0.00038664,120]
[424360733,1780782710000,-500.0,0.00038664,120]
[424360731,1780782710000,-500.0,0.00038664,120]
[424360738,1780782710000,-500.0,0.00038664,120]
[424360736,1780782710000,-444.38778338,0.00038664,120]
[424360739,1780782710000,-482.33055533,0.00038664,120]
[424360740,1780782710000,-204.65608249,0.00038664,120]
[424360743,1780782710000,-1500.0,0.00038664,120]
[424360744,1780782710000,-30000.0,0.00038664,61]
[424360742,1780782710000,-32003.66005133,0.00038664,120]
[424360745,1780782710000,-568.064,0.00038664,120]
[424360747,1780782710000,-199.70696046,0.00038664,120]
[424360748,1780782710000,-500.0,0.00038664,120]
[424360749,1780782710000,-500.0,0.00038664,120]
[424360746,1780782710000,-103519.49479638,0.00038664,20]
[424360724,1780782710000,-500.0,0.00038664,120]
[424360722,1780782710000,-500.0,0.00038664,120]
[424360741,1780782710000,-82463.90017506,0.00038664,10]
[424360711,1780782710000,-500.0,0.00038664,120]
[424360685,1780782710000,-500.0,0.00038664,120]
[424360717,1780782710000,-570.38,0.00038664,120]
[424360679,1780782710000,-500.0,0.00038664,120]
[424360687,1780782710000,-500.0,0.00038664,120]
[424360688,1780782710000,-501.71999999,0.00038664,120]
[424360690,1780782710000,-500.0,0.00038664,120]
[424360702,1780782710000,-500.0,0.00038664,120]
[424360692,1780782710000,-500.0,0.00038664,120]
[424360693,1780782710000,-500.0,0.00038664,120]
[424360694,1780782710000,-271.47,0.00038664,120]
[424360691,1780782710000,-500.0,0.00038664,120]
[424360698,1780782710000,-500.0,0.00038664,120]
[424360697,1780782710000,-500.0,0.00038664,120]
[424360699,1780782710000,-313.09,0.00038664,120]
[424360700,1780782710000,-500.0,0.00038664,120]
[424360695,1780782710000,-500.0,0.00038664,120]
[424360696,1780782710000,-500.0,0.00038664,120]
[424360710,1780782710000,-500.0,0.00038664,120]
[424360701,1780782710000,-500.0,0.00038664,120]
[424360716,1780782710000,-500.0,0.00038664,120]
[424360713,1780782710000,-500.0,0.00038664,120]
[424360708,1780782710000,-500.0,0.00038664,120]
[424360709,1780782710000,-500.0,0.00038664,120]
[424360714,1780782710000,-500.0,0.00038664,120]
[424360712,1780782710000,-262.65648872,0.00038664,120]
[424360707,1780782710000,-500.0,0.00038664,120]
[424360706,1780782710000,-500.0,0.00038664,120]
[424360715,1780782710000,-500.0,0.00038664,120]
[424360703,1780782710000,-500.0,0.00038664,120]
[424360704,1780782710000,-500.0,0.00038664,120]
[424360705,1780782710000,-154.23,0.00038664,120]
[424360803,1780782711000,-500.0,0.00038664,120]
[424360792,1780782711000,-500.0,0.00038664,120]
[424360796,1780782711000,-500.0,0.00038664,120]
[424360793,1780782711000,-159.73,0.00038664,120]
[424360785,1780782711000,-500.0,0.00038664,120]
[424360789,1780782711000,-500.0,0.00038664,120]
[424360791,1780782711000,-500.0,0.00038664,120]
[424360788,1780782711000,-387.85,0.00038664,120]
[424360782,1780782711000,-272.74,0.00038664,120]
[424360787,1780782711000,-500.0,0.00038664,120]
[424360786,1780782711000,-500.0,0.00038664,120]
[424360795,1780782711000,-500.0,0.00038664,120]
[424360784,1780782711000,-500.0,0.00038664,120]
[424360794,1780782711000,-500.0,0.00038664,120]
[424360808,1780782711000,-50000.0,0.00038664,55]
[424360799,1780782711000,-500.0,0.00038664,120]
[424360802,1780782711000,-500.0,0.00038664,120]
[424360801,1780782711000,-500.0,0.00038664,120]
[424360798,1780782711000,-500.0,0.00038664,120]
[424360800,1780782711000,-500.0,0.00038664,120]
[424360804,1780782711000,-500.0,0.00038664,120]
[424360809,1780782711000,-50000.0,0.00038664,56]
[424360812,1780782711000,-1942085.54408454,0.00038664,61]
[424360815,1780782711000,-326744.88380875,0.00038664,120]
[424360807,1780782711000,-50000.0,0.00038664,54]
[424360811,1780782711000,-9374.69642352,0.00038664,120]
[424360806,1780782711000,-50000.0,0.00038664,53]
[424360817,1780782711000,-13807.22211324,0.00038664,120]
[424360783,1780782711000,-572.94924562,0.00038664,120]
[424360797,1780782711000,-29999.999999,0.00038664,120]
[424360781,1780782711000,-500.0,0.00038664,120]
[424360754,1780782711000,-544.5,0.00038664,120]
[424360780,1780782711000,-500.0,0.00038664,120]
[424360810,1780782711000,-50000.0,0.00038664,57]
[424360753,1780782711000,-500.0,0.00038664,120]
[424360751,1780782711000,-500.0,0.00038664,120]
[424360752,1780782711000,-500.0,0.00038664,120]
[424360750,1780782711000,-500.0,0.00038664,120]
[424360755,1780782711000,-500.0,0.00038664,120]
[424360761,1780782711000,-500.0,0.00038664,120]
[424360759,1780782711000,-500.0,0.00038664,120]
[424360766,1780782711000,-500.0,0.00038664,120]
[424360757,1780782711000,-500.0,0.00038664,120]
[424360758,1780782711000,-500.0,0.00038664,120]
[424360756,1780782711000,-500.0,0.00038664,120]
[424360762,1780782711000,-500.0,0.00038664,120]
[424360760,1780782711000,-500.0,0.00038664,120]
[424360765,1780782711000,-500.0,0.00038664,120]
[424360764,1780782711000,-185.44706638,0.00038664,120]
[424360763,1780782711000,-500.0,0.00038664,120]
[424360769,1780782711000,-421.91303991,0.00038664,120]
[424360778,1780782711000,-500.0,0.00038664,120]
[424360768,1780782711000,-500.0,0.00038664,120]
[424360767,1780782711000,-500.0,0.00038664,120]
[424360772,1780782711000,-500.0,0.00038664,120]
[424360774,1780782711000,-500.0,0.00038664,120]
[424360771,1780782711000,-500.0,0.00038664,120]
[424360773,1780782711000,-500.0,0.00038664,120]
[424360777,1780782711000,-500.0,0.00038664,120]
[424360776,1780782711000,-500.0,0.00038664,120]
[424360775,1780782711000,-500.0,0.00038664,120]
[424360779,1780782711000,-500.0,0.00038664,120]
[424360790,1780782711000,-500.0,0.00038664,120]
[424360816,1780782711000,-356871.26461704,0.00038664,120]
[424360770,1780782711000,-500.0,0.00038664,120]
[424360805,1780782711000,-500.0,0.00038664,120]
[424360858,1780782711000,-500.0,0.00038664,120]
[424360848,1780782711000,-500.0,0.00038664,120]
[424360845,1780782711000,-549.64067031,0.00038664,120]
[424360853,1780782711000,-500.0,0.00038664,120]
[424360850,1780782711000,-500.0,0.00038664,120]
[424360851,1780782711000,-500.0,0.00038664,120]
[424360852,1780782711000,-500.0,0.00038664,120]
[424360855,1780782711000,-500.0,0.00038664,120]
[424360854,1780782711000,-500.0,0.00038664,120]
[424360860,1780782711000,-500.0,0.00038664,120]
[424360863,1780782711000,-500.0,0.00038664,120]
[424360864,1780782711000,-243.65560643,0.00038664,120]
[424360867,1780782711000,-500.0,0.00038664,120]
[424360866,1780782711000,-500.0,0.00038664,120]
[424360865,1780782711000,-500.0,0.00038664,120]
[424360868,1780782711000,-500.0,0.00038664,120]
[424360862,1780782711000,-500.0,0.00038664,120]
[424360870,1780782711000,-500.0,0.00038664,120]
[424360869,1780782711000,-500.0,0.00038664,120]
[424360872,1780782711000,-500.0,0.00038664,120]
[424360871,1780782711000,-500.0,0.00038664,120]
[424360861,1780782711000,-355.65952401,0.00038664,120]
[424360874,1780782711000,-205999.999968,0.00038664,32]
[424360875,1780782711000,-161.55419916,0.00038664,120]
[424360873,1780782711000,-279.94,0.00038664,120]
[424360879,1780782711000,-407.49014657,0.00038664,120]
[424360876,1780782711000,-141423.24235133,0.00038664,120]
[424360878,1780782711000,-155.55037849,0.00038664,30]
[424360813,1780782711000,-277283.15450128,0.00038664,120]
[424360849,1780782711000,-500.0,0.00038664,120]
[424360859,1780782711000,-299.35,0.00038664,120]
[424360877,1780782711000,-193.06807673,0.00038664,20]
[424360846,1780782711000,-500.0,0.00038664,120]
[424360847,1780782711000,-586.69,0.00038664,120]
[424360830,1780782711000,-500.0,0.00038664,120]
[424360814,1780782711000,-25215.41775006,0.00038664,120]
[424360818,1780782711000,-50000.0,0.00038664,120]
[424360819,1780782711000,-500.5,0.00038664,120]
[424360829,1780782711000,-500.0,0.00038664,120]
[424360820,1780782711000,-500.0,0.00038664,120]
[424360827,1780782711000,-500.0,0.00038664,120]
[424360822,1780782711000,-500.0,0.00038664,120]
[424360828,1780782711000,-500.0,0.00038664,120]
[424360821,1780782711000,-500.0,0.00038664,120]
[424360826,1780782711000,-500.0,0.00038664,120]
[424360823,1780782711000,-500.0,0.00038664,120]
[424360824,1780782711000,-500.0,0.00038664,120]
[424360834,1780782711000,-512266.13321486,0.00038664,120]
[424360825,1780782711000,-500.0,0.00038664,120]
[424360833,1780782711000,-162.88364768,0.00038664,120]
[424360831,1780782711000,-500.0,0.00038664,120]
[424360856,1780782711000,-500.0,0.00038664,120]
[424360857,1780782711000,-599.51,0.00038664,120]
[424360842,1780782711000,-500.0,0.00038664,120]
[424360843,1780782711000,-500.0,0.00038664,120]
[424360841,1780782711000,-500.0,0.00038664,120]
[424360840,1780782711000,-500.0,0.00038664,120]
[424360844,1780782711000,-500.0,0.00038664,120]
[424360839,1780782711000,-10000.0,0.00038664,120]
[424360837,1780782711000,-10000.0,0.00038664,120]
[424360832,1780782711000,-515.93050311,0.00038664,120]
[424360838,1780782711000,-10000.0,0.00038664,120]
[424360836,1780782711000,-42147.34240945,0.00038664,120]
[424360835,1780782711000,-17087.96665556,0.00038664,120]
[424360889,1780782712000,-620.4,0.00038664,120]
[424360893,1780782712000,-620.4,0.00038664,120]
[424360898,1780782712000,-620.4,0.00038664,120]
[424360892,1780782712000,-620.4,0.00038664,120]
[424360891,1780782712000,-620.4,0.00038664,120]
[424360888,1780782712000,-620.4,0.00038664,120]
[424360887,1780782712000,-620.4,0.00038664,120]
[424360886,1780782712000,-620.4,0.00038664,120]
[424360880,1780782712000,-833.33,0.00038664,120]
[424360882,1780782712000,-833.33,0.00038664,120]
[424360881,1780782712000,-833.33,0.00038664,120]
[424360883,1780782712000,-20078.0,0.00038664,30]
[424360885,1780782712000,-620.4,0.00038664,120]
[424360884,1780782712000,-620.4,0.00038664,120]
[424360895,1780782712000,-620.4,0.00038664,120]
[424360890,1780782712000,-620.4,0.00038664,120]
[424360894,1780782712000,-620.4,0.00038664,120]
[424360900,1780782712000,-620.4,0.00038664,120]
[424360897,1780782712000,-620.4,0.00038664,120]
[424360896,1780782712000,-620.4,0.00038664,120]
[424360905,1780782712000,-620.4,0.00038664,120]
[424360907,1780782712000,-620.54851681,0.00038664,120]
[424360910,1780782712000,-500.0,0.00038664,120]
[424360908,1780782712000,-500.0,0.00038664,120]
[424360909,1780782712000,-500.0,0.00038664,120]
[424360903,1780782712000,-620.4,0.00038664,120]
[424360904,1780782712000,-620.4,0.00038664,120]
[424360906,1780782712000,-620.4,0.00038664,120]
[424360901,1780782712000,-620.4,0.00038664,120]
[424360914,1780782712000,-6200.15830624,0.00038664,120]
[424360913,1780782712000,-11304.89,0.00038664,120]
[424360912,1780782712000,-11304.89,0.00038664,120]
[424360899,1780782712000,-620.4,0.00038664,120]
[424360902,1780782712000,-620.4,0.00038664,120]
[424360911,1780782712000,-346.22139871,0.00038664,120]
[424360917,1780782713000,-1448.30710298,0.00017147,2]
[424360915,1780782713000,-5104.73169376,0.00038664,120]
[424360916,1780782713000,-7416.43639413,0.00038664,120]
[424360918,1780782717000,177.767079,0.00026849,120]
[424360953,1780783831000,-151.33,0.00012401,2]
[424360963,1780783831000,-150.0,0.00013027,2]
[424360956,1780783831000,-2000.0,0.00012491,2]
[424360951,1780783831000,-1394.65,0.00012337,2]
[424360962,1780783831000,-275.83,0.00012877,2]
[424360952,1780783831000,-200.0,0.00012368,2]
[424360950,1780783831000,-345.62,0.00012291,2]
[424360948,1780783831000,-2030.96853962,0.00012203,2]
[424360946,1780783831000,-728.50785652,0.00012161,2]
[424360964,1780783831000,-448.0,0.00013027,2]
[424360947,1780783831000,-90.67146038,0.00012203,2]
[424360945,1780783831000,-1494.26971611,0.00012161,2]
[424360944,1780783831000,-1257.24,0.00012161,2]
[424360941,1780783831000,-2445.1958222,0.00012161,2]
[424360942,1780783831000,-1306.980303,0.00012161,2]
[424360943,1780783831000,-610.44814184,0.00012161,2]
[424360940,1780783831000,-953.10016033,0.00012161,2]
[424360938,1780783831000,-155.56,0.00010504,2]
[424360939,1780783831000,-171.288,0.00012161,2]
[424360949,1780783831000,-219.33,0.00012249,2]
[424360955,1780783831000,-150.0,0.00012441,2]
[424360979,1780783831000,-457.0,0.00013028,2]
[424360958,1780783831000,-1876.81,0.00012684,2]
[424360961,1780783831000,-150.0,0.00012773,2]
[424360981,1780783831000,-447.0,0.00013028,2]
[424360980,1780783831000,-441.0,0.00013028,2]
[424360970,1780783831000,-445.0,0.00013028,2]
[424360971,1780783831000,-452.0,0.00013028,2]
[424360975,1780783831000,-453.0,0.00013028,2]
[424360972,1780783831000,-449.0,0.00013028,2]
[424360974,1780783831000,-454.0,0.00013028,2]
[424360976,1780783831000,-442.0,0.00013028,2]
[424360969,1780783831000,-450.0,0.00013028,2]
[424360968,1780783831000,-456.0,0.00013027,2]
[424360977,1780783831000,-458.0,0.00013028,2]
[424360978,1780783831000,-452.0,0.00013028,2]
[424360966,1780783831000,-442.0,0.00013027,2]
[424360967,1780783831000,-448.0,0.00013027,2]
[424360965,1780783831000,-442.0,0.00013027,2]
[424360959,1780783831000,-250.67,0.00012684,2]
[424360973,1780783831000,-443.0,0.00013028,2]
[424360957,1780783831000,-625.48,0.00012644,2]
[424360960,1780783831000,-181.23,0.00012684,2]
[424361032,1780783832000,-456.0,0.00013398,2]
[424361024,1780783832000,-17848.97,0.00013249,2]
[424361030,1780783832000,-449.0,0.00013398,2]
[424361023,1780783832000,-166.044,0.00013228,2]
[424361021,1780783832000,-445.0,0.00013228,2]
[424361016,1780783832000,-457.0,0.00013228,2]
[424361013,1780783832000,-454.0,0.00013128,2]
[424361015,1780783832000,-1500000.0,0.000132,2]
[424361018,1780783832000,-456.0,0.00013228,2]
[424361017,1780783832000,-447.0,0.00013228,2]
[424361025,1780783832000,-1474.16880472,0.000133,2]
[424361022,1780783832000,-2755.615,0.00013228,2]
[424361031,1780783832000,-448.0,0.00013398,2]
[424361039,1780783832000,-2500.0,0.00013398,2]
[424361028,1780783832000,-186.6761124,0.00013398,2]
[424361046,1780783832000,-449.0,0.00013498,2]
[424361037,1780783832000,-453.0,0.00013398,2]
[424361045,1780783832000,-2000.0,0.00013498,2]
[424361038,1780783832000,-459.0,0.00013398,2]
[424361035,1780783832000,-451.0,0.00013398,2]
[424361040,1780783832000,-458.0,0.00013497,2]
[424361026,1780783832000,-2891.52061692,0.00013398,2]
[424361014,1780783832000,-160.03941576,0.0001319,2]
[424361036,1780783832000,-458.0,0.00013398,2]
[424361033,1780783832000,-447.0,0.00013398,2]
[424361034,1780783832000,-450.0,0.00013398,2]
[424361044,1780783832000,-1000.0,0.00013497,2]
[424361029,1780783832000,-446.0,0.00013398,2]
[424361027,1780783832000,-159.1959413,0.00013398,2]
[424361043,1780783832000,-250.0,0.00013497,2]
[424361020,1780783832000,-445.0,0.00013228,2]
[424361002,1780783832000,-453.0,0.00013128,2]
[424361010,1780783832000,-450.0,0.00013128,2]
[424361041,1780783832000,-454.0,0.00013497,2]
[424360983,1780783832000,-455.0,0.00013028,2]
[424360982,1780783832000,-442.0,0.00013028,2]
[424360984,1780783832000,-447.0,0.00013028,2]
[424360989,1780783832000,-447.0,0.00013128,2]
[424360990,1780783832000,-442.0,0.00013128,2]
[424360988,1780783832000,-459.0,0.00013128,2]
[424360992,1780783832000,-446.0,0.00013128,2]
[424360991,1780783832000,-441.0,0.00013128,2]
[424360985,1780783832000,-457.0,0.00013028,2]
[424360986,1780783832000,-447.0,0.00013028,2]
[424360987,1780783832000,-456.0,0.00013128,2]
[424360993,1780783832000,-454.0,0.00013128,2]
[424360994,1780783832000,-446.0,0.00013128,2]
[424361011,1780783832000,-457.0,0.00013128,2]
[424360996,1780783832000,-442.0,0.00013128,2]
[424360997,1780783832000,-451.0,0.00013128,2]
[424360999,1780783832000,-457.0,0.00013128,2]
[424361001,1780783832000,-451.0,0.00013128,2]
[424361007,1780783832000,-456.0,0.00013128,2]
[424361000,1780783832000,-450.0,0.00013128,2]
[424360995,1780783832000,-450.0,0.00013128,2]
[424361006,1780783832000,-449.0,0.00013128,2]
[424361005,1780783832000,-455.0,0.00013128,2]
[424361004,1780783832000,-449.0,0.00013128,2]
[424361003,1780783832000,-451.0,0.00013128,2]
[424361009,1780783832000,-443.0,0.00013128,2]
[424361019,1780783832000,-441.0,0.00013228,2]
[424361008,1780783832000,-456.0,0.00013128,2]
[424361012,1780783832000,-451.0,0.00013128,2]
[424360998,1780783832000,-445.0,0.00013128,2]
[424361042,1780783832000,-150.0,0.00013497,2]
[424361098,1780783832000,-500.0,0.00013698,2]
[424361048,1780783832000,-457.0,0.00013498,2]
[424361080,1780783832000,-500.0,0.00013698,2]
[424361082,1780783832000,-408.36930223,0.00013698,2]
[424361085,1780783832000,-500.0,0.00013698,2]
[424361086,1780783832000,-500.0,0.00013698,2]
[424361087,1780783832000,-500.0,0.00013698,2]
[424361097,1780783832000,-500.0,0.00013698,2]
[424361089,1780783832000,-500.0,0.00013698,2]
[424361088,1780783832000,-500.0,0.00013698,2]
[424361099,1780783832000,-500.0,0.00013698,2]
[424361091,1780783832000,-500.0,0.00013698,2]
[424361092,1780783832000,-500.0,0.00013698,2]
[424361095,1780783832000,-500.0,0.00013698,2]
[424361096,1780783832000,-500.0,0.00013698,2]
[424361090,1780783832000,-500.0,0.00013698,2]
[424361081,1780783832000,-500.0,0.00013698,2]
[424361093,1780783832000,-500.0,0.00013698,2]
[424361105,1780783832000,-2569.26,0.00013698,2]
[424361103,1780783832000,-2569.26,0.00013698,2]
[424361109,1780783832000,-500.0,0.00013698,2]
[424361104,1780783832000,-2569.26,0.00013698,2]
[424361100,1780783832000,-500.0,0.00013698,2]
[424361102,1780783832000,-2569.26,0.00013698,2]
[424361108,1780783832000,-500.0,0.00013698,2]
[424361101,1780783832000,-392.4655753,0.00013698,2]
[424361107,1780783832000,-2569.26,0.00013698,2]
[424361110,1780783832000,-500.0,0.00013698,2]
[424361111,1780783832000,-500.0,0.00013698,2]
[424361106,1780783832000,-2569.26,0.00013698,2]
[424361113,1780783832000,-500.0,0.00013698,2]
[424361047,1780783832000,-456.0,0.00013498,2]
[424361094,1780783832000,-500.0,0.00013698,2]